{"text_format":"1","workbook":"xlsx","n_sheets":1,"sheets":["TDSheet"],"not_rendered":{"charts":0,"images":1,"macros":1,"external_links":0,"defined_names":1,"comments":0,"pivot_tables":0},"unopened":[],"bounds":{"document_bytes":16777216,"sheet_cells":100000,"rows_first":2000,"rows_last":500,"rows_between":2000,"halvings":0,"cell_chars":16384,"cell_head_chars":4096},"cells_cut":0,"cells_raw":0,"read":"whole","date_system":"1900"}

{"sheet":"TDSheet","index":0,"n_rows":40,"n_cols":11,"rows_kept":40,"cut":false,"hidden":false,"merged":[[13,2,13,6],[29,2,29,6],[34,0,34,7],[34,8,34,10],[35,0,35,7],[35,8,39,10],[36,0,36,7],[38,0,38,7],[39,0,39,7],[7,0,7,7],[7,9,7,10],[9,2,9,6],[10,2,10,6],[11,2,11,6],[0,2,1,3],[0,5,0,10],[2,0,6,3],[2,5,2,10],[3,6,3,7],[3,9,3,10],[4,6,4,10],[5,5,5,7],[5,8,5,10]]}
[null,null,"Группа компаний\n«Агрофирма СемКом»\nООО «СемКом»\nИП Семченко А.Т.\nИП Кодырева Н.А.",null,null,"Операторы оптового отдела:"]
[]
["20 лет на рынке профессиональных семян\n30 лет на рынке семян для ЛПХ и средств защиты растений."]
[null,null,null,null,null,"Заказчик:",null,null,"Телефон/email:"]
[null,null,null,null,null,"Адрес:"]
[null,null,null,null,null,"Получение товара(самовывоз/отправка ТК):"]
[]
["ПРАЙС-ЛИСТ НА 18.05.2024",null,null,null,null,null,null,null,"Сумма :",{"$f":"SUM(I10:I34)","v":0}]
["№","Код","Наименование","Производитель",null,"Упаковка","Цена","Заказ","Сумма","Описание","Штрихкод"]
[null,100657,"Рассада, живые растения",null,null,null,null,null,null,{"$f":"IF(A10<>\"\",HYPERLINK(CONCATENATE(\"https://семком.рф/catalog/\",IFERROR(VALUE(B10),\"\")),\"Описание\"),\"\")","v":""}]
[null,101536,"Плодовые и декоративные растения",null,null,null,null,null,null,""]
[null,122582,"1.плодовые",null,null,null,null,null,null,""]
[1,"00120049","Виноград плодовый Амурский прорыв (Один)","Волжский Сад",null,null,320,null,{"$f":"H13*G13","v":0},"Описание",2000000329956]
[null,152011,"Рассада овощей",null,null,null,null,null,null,""]
[2,"00154074","Рассада баклажана Аретусса F1","Россия",null,null,40,null,{"$f":"H15*G15","v":0},"Описание",2000900581621]
[3,"00154073","Рассада баклажана Блек Перл F1","Россия",null,null,40,null,{"$f":"H16*G16","v":0},"Описание",2000900581614]
[4,"00154075","Рассада баклажана Блэк Маджести F1","Россия",null,null,40,null,{"$f":"H17*G17","v":0},"Описание",2000900581638]
[5,"00152096","Рассада огурца Антисипатор F1","Россия",null,null,50,null,{"$f":"H18*G18","v":0},"Описание",2000900564648]
[6,"00152098","Рассада огурца Кураж F1","Россия",null,null,50,null,{"$f":"H19*G19","v":0},"Описание",2000900564662]
[7,"00154049","Рассада перца Дон F1","Россия",null,null,40,null,{"$f":"H20*G20","v":0},"Описание",2000900581423]
[8,"00152099","Рассада перца Портека F1","Россия",null,null,40,null,{"$f":"H21*G21","v":0},"Описание",2000900564679]
[9,"00154046","Рассада перца Риалто F1","Россия",null,null,40,null,{"$f":"H22*G22","v":0},"Описание",2000900581393]
[10,"00154047","Рассада перца Симпати F1","Россия",null,null,40,null,{"$f":"H23*G23","v":0},"Описание",2000900581409]
[11,"00154045","Рассада перца Текила F1","Россия",null,null,40,null,{"$f":"H24*G24","v":0},"Описание",2000900581386]
[12,"00154601","Рассада томата Гранадеро F1","Россия",null,null,40,null,{"$f":"H25*G25","v":0},"Описание",2000900586459]
[13,"00151994","Рассада томата Корнабель F1","Россия",null,null,60,null,{"$f":"H26*G26","v":0},"Описание",2000900563924]
[14,"00154597","Рассада томата Креатив F1","Россия",null,null,40,null,{"$f":"H27*G27","v":0},"Описание",2000900586404]
[15,"00154599","Рассада томата Нина F1","Россия",null,null,40,null,{"$f":"H28*G28","v":0},"Описание",2000900586435]
[16,"00154600","Рассада томата Пинк Хор F1","Россия",null,null,40,null,{"$f":"H29*G29","v":0},"Описание",2000900586442]
[null,123741,"Рассада,сеянцы, укорененные черенки",null,null,null,null,null,null,""]
[17,"00133369","Петуния контейнер 0,350",null,null,null,120,null,{"$f":"H31*G31","v":0},"Описание",2000900382846]
[18,"00137448","Сеянец Георгина (СЦ)","Россия",null,null,150,null,{"$f":"H32*G32","v":0},"Описание",2000900424096]
[19,"00136924","Сеянец Лобелия (СЦ)","Россия",null,null,100,null,{"$f":"H33*G33","v":0},"Описание",2000900418804]
[20,"00131660","Ук.ч.Фуксия (СЦ)","Россия",null,null,100,null,{"$f":"H34*G34","v":0},"Описание",2000900365788]
["*з/п - семена упакованы в зип-пакет.\nЦены производителей. \nКаталоги и прай-листы производителей смотрите в разделе ПРОИЗВОДИТЕЛИ на сайте СЕМКОМ.РФ. \nСкидки на общую сумму закупки  семян всех производителей."]
["По предварительному заказу можно приобрести любые семена селекционно-семеноводческих компаний, размещённых в разделе ПРОИЗВОДИТЕЛИ."]
["Цены действительны на указанную дату. Выставленный счёт актуален на 5 банковских дней.\nВ связи с возможным изменением курса валют, поставщик оставляет за собой право в одностороннем порядке изменить цены.\nПредусмотрена система скидок."]
[]
["Наши семена можно приобрести в сети магазинов «Усадьба»:"]
["Головной офис: г.Лиски, Воронежская обл., ул.Трудовые резервы д.7, тел.: 8(47391) 4-75-55, 4-38-02, 4-69-04, 4-63-77, e-mail: semkom@list.ru,\nСайт: СЕМКОМ.РФ\nИнтернет-магазин \"Усадьба Фермера\": усадьба-фермера.рф\nМы в ОК: https://ok.ru/usadba.fermera \nМЫ в VK: https://vk.com/usadba.fermera\nМы в INSTAGRAM: https://www.instagram.com/semkom36/ \n\nРозничная сеть магазинов «Усадьба - Фермера»:\nг.Лиски, ул. Коммунистическая д. 2 А, тел.: 8-952-547-76-88;\nг.Лиски, ул. Трудовые Резервы д. 7, тел.:  8-908-137-71-32;\nп.Давыдовка, ул. Ленина д. 81-б тел.: 8(47391) 6-72-37;\nс.Тресоруково, ул. Набережная д. 22-а, тел.: 8-952-547-75-66;\nг.Воронеж, ул. Димитрова, д. 67, тел.: 8-900-960-34-71;\nг.Воронеж, ул. Остужева, д. 54-а, тел.: 8-900-931-37-60.\nг.Бутурлиновка, ул. 3-го Интернационала, 2 ,ТЦ Проспект, тел.: 8-900-948-89-19;\nг.Белгород, ул.Чумичова, д.38, к.217, тел.: 8(4722) 33-86-33, e-mail: semkombel@rambler.ru;"]